fUSD/lending_fUSD_20250421
["ID","MTS","AMOUNT","RATE_DAILY","PERIOD"]
[358557216,1745256632199,-4289.1833,0.00019786,2]
[358557217,1745256632208,-300.0,0.00019799,2]
[358557218,1745256632218,-25214.66691482,0.000198,2]
[358557219,1745256632227,-300.0,0.000198,7]
[358557220,1745256632236,-1000.0,0.00019886,2]
[358557221,1745256632245,-8736.48470162,0.00019886,2]
[358557222,1745256632268,-265.73307779,0.00019886,2]
[358557254,1745256638315,-27168.70582059,0.00019886,2]
[358557256,1745256638325,-150.0,0.00019893,2]
[358557258,1745256638334,-150.99,0.00019893,2]
[358557260,1745256638344,-722.95669625,0.000199,2]
[358557262,1745256638354,-16236.55109958,0.000199,2]
[358557263,1745256638363,-300.0,0.000199,7]
[358557264,1745256638372,-2537.7245,0.000199,2]
[358557265,1745256638382,-77432.46372332,0.000199,2]
[358557266,1745256638391,-187.70998615,0.000199,3]
[358557267,1745256638400,-176.07716464,0.000199,2]
[358557268,1745256638409,-316.2942,0.000199,2]
[358557269,1745256638419,-1000.0,0.000199,2]
[358557270,1745256638429,-500.0,0.00019973,2]
[358557271,1745256638439,-504.75280513,0.00019973,2]
[358557272,1745256638448,-502.1102975,0.00019973,2]
[358557273,1745256638458,-511.12929153,0.00019973,2]
[358557274,1745256638467,-615.82724868,0.00019973,2]
[358557275,1745256638476,-500.0,0.00019973,2]
[358557276,1745256638486,-500.0,0.00019973,2]
[358557277,1745256638495,-479.32928362,0.0001999,2]
[358557278,1745256638504,-479.32928362,0.0001999,2]
[358557279,1745256638513,-479.32928362,0.0001999,2]
[358557280,1745256638524,-238.5375079,0.00019998,2]
[358557282,1745256638533,-209.37727252,0.00019998,2]
[358557283,1745256638543,-188.35579149,0.00019998,2]
[358557285,1745256638552,-300.0,0.00019999,2]
[358557286,1745256638561,-500.0,0.00019999,2]
[358557287,1745256638571,-500.0,0.00019999,2]
[358557288,1745256638581,-500.0,0.00019999,2]
[358557289,1745256638590,-500.0,0.00019999,2]
[358557290,1745256638600,-500.0,0.00019999,2]
[358557291,1745256638610,-500.0,0.00019999,2]
[358557292,1745256638620,-300.0,0.00019999,2]
[358557293,1745256638629,-500.0,0.00019999,2]
[358557294,1745256638639,-32645.47346832,0.00019999,2]
[358557295,1745256638649,-234.99380532,0.0002,2]
[358557296,1745256638659,-1638252.81041398,0.0002,2]
[358557297,1745256638671,-2876782.37640256,0.0002,2]
[358557311,1745256640382,-1000.0,0.000199,2]
[358557312,1745256640392,-26240.04620976,0.000199,2]
[358557313,1745256640600,-9930.87739024,0.000199,2]
[358557314,1745256640610,-222498.1152622,0.0002,2]
[358557315,1745256640622,-1000.0,0.0002,2]
[358557316,1745256640658,-1149.58361211,0.0002,2]
[358557317,1745256640669,-651.36134457,0.0002,2]
[358557318,1745256640682,-4763.00699997,0.0002,2]
[358557319,1745256640694,-353.3682775,0.0002,2]
[358557320,1745256640705,-353.88917786,0.0002,2]
[358557321,1745256640729,-447.72946,0.0002,2]
[358557322,1745256640741,-429.86461252,0.0002,2]
[358557323,1745256640830,-415.8,0.0002,2]
[358557406,1745256645177,-4445.46358012,0.0002,2]
[358557407,1745256645191,-20008.51111907,0.0002,2]
[358557408,1745256645203,-388.16418315,0.0002,2]
[358557409,1745256645214,-11344.68196331,0.0002,2]
[358557410,1745256645244,-8758.6013179,0.0002,2]
[358557411,1745256645256,-853.61550372,0.0002,2]
[358557412,1745256645267,-3450.78089988,0.0002,2]
[358557413,1745256645598,-967.74008603,0.0002,2]
[358557414,1745256645610,-649.3791014,0.0002,2]
[358557416,1745256646226,-17418.22856699,0.0002,2]
[358557417,1745256646237,-1061.46786478,0.0002,2]
[358557418,1745256646338,-1739.1,0.0002,2]
[358557419,1745256646394,-550.30010003,0.0002,2]
[358557420,1745256646405,-1475.63955,0.0002,2]
[358557421,1745256646415,-422.39352,0.0002,2]
[358557423,1745256797833,-187.70998615,0.000199,3]
[358557424,1745256797859,-2000.0,0.0002,4]
[358557425,1745256884026,187.70998615,0.000199,3]
[358557426,1745257188552,300.0,0.000193,7]
[358557427,1745257190988,700.0,0.000194,7]
[358557428,1745257192782,1100.0,0.000195,7]
[358557429,1745257194883,1400.0,0.000196,7]
[358557430,1745257197051,1800.0,0.000197,7]
[358557431,1745257199171,300.0,0.000198,7]
[358557432,1745257201286,300.0,0.000199,7]
[358557433,1745257440730,200.0,0.00018899,2]
[358557434,1745257523351,50.0,0.00018796,2]
[358557435,1745257523385,1984.85,0.00018796,2]
[358557436,1745257592928,-168.24340646,0.00019588,2]
[358557437,1745257598113,-2111.52998554,0.00019588,2]
[358557438,1745257598137,-411.75,0.00019687,2]
[358557439,1745257598163,-250.0,0.00019698,2]
[358557440,1745257598186,-150.0,0.00019699,2]
[358557441,1745257598209,-239.2719972,0.0001971,2]
[358557442,1745257598232,-239.2719971,0.00019712,2]
[358557443,1745257598257,-239.2719971,0.00019715,2]
[358557444,1745257598281,-239.2719971,0.00019717,2]
[358557445,1745257598304,-239.2719971,0.0001972,2]
[358557446,1745257598330,-239.2719971,0.00019722,2]
[358557447,1745257598353,-239.2719971,0.00019725,2]
[358557448,1745257598377,-239.2719971,0.00019727,2]
[358557449,1745257598402,-239.2719971,0.00019729,2]
[358557450,1745257598426,-239.2719971,0.00019732,2]
[358557451,1745257598450,-239.2719971,0.00019734,2]
[358557452,1745257598472,-239.2719971,0.00019737,2]
[358557453,1745257598497,-239.2719971,0.00019739,2]
[358557454,1745257598521,-239.2719971,0.00019741,2]
[358557455,1745257598544,-239.2719971,0.00019744,2]
[358557456,1745257598567,-239.2719971,0.00019746,2]
[358557457,1745257598592,-239.2719971,0.00019749,2]
[358557458,1745257598616,-239.2719971,0.00019751,2]
[358557459,1745257598638,-239.2719971,0.00019754,2]
[358557460,1745257598661,-239.2719971,0.00019756,2]
[358557461,1745257598687,-300.0,0.00019799,2]
[358557462,1745257598712,-300.0,0.00019799,2]
[358557463,1745257598738,-3450.55134558,0.000198,2]
[358557464,1745257598761,-316.2942,0.000198,2]
[358557465,1745257598784,-2537.7245,0.000198,2]
[358557466,1745257598808,-225.0918,0.000198,2]
[358557467,1745257598831,-5161.61822678,0.000198,2]
[358557468,1745257610082,952.73,0.00016983,2]
[358557469,1745257611159,-212.20954087,0.00019247,2]
[358557470,1745257633987,-740.52045913,0.00019247,2]
[358557471,1745257634012,-1534.65877322,0.000198,2]
[358557472,1745257634038,-1012.0548,0.000198,2]
[358557473,1745257634062,-1000.0,0.000198,2]
[358557474,1745257634087,-17398.8196,0.000198,2]
[358557475,1745257634111,-2313.94636765,0.000198,2]
[358557476,1745257699867,-186.05363235,0.000198,2]
[358557477,1745257699892,-316.2942,0.000198,2]
[358557478,1745257699918,-2537.7245,0.000198,2]
[358557479,1745257699942,-26959.92766765,0.0001981,2]
[358557483,1745257765245,-704.0413,0.000198,2]
[358557484,1745257765270,-1000.0,0.000198,2]
[358557485,1745257765294,-6696.277,0.000198,2]
[358557486,1745257765318,-300.0,0.00019809,2]
[358557487,1745257765341,-11299.6817,0.0001981,2]
[358557488,1745257797366,-152.94209695,0.00019389,2]
[358557489,1745257803396,2000.0,0.0002,4]
[358557490,1745257813561,449.32,0.00018936,2]
[358557493,1745257832432,-1699.47790305,0.00019389,2]
[358557494,1745257832443,-2537.7245,0.0001971,2]
[358557495,1745257832453,-300.0,0.00019799,2]
[358557496,1745257832466,-896.38587395,0.000198,2]
[358557497,1745257832478,-1047.85311258,0.000198,2]
[358557498,1745257832492,-1161.25722442,0.000198,2]
[358557499,1745257832502,-2500.0,0.000198,2]
[358557500,1745257832511,-6666.23809068,0.0001981,2]
[358557501,1745257832536,-567.02785561,0.0001981,2]
[358557502,1745257832547,-1419.41840479,0.0001981,2]
[358557503,1745257832559,-896.14601445,0.0001981,2]
[358557504,1745257832588,-296.50466061,0.0001981,2]
[358557505,1745257832679,-513.74121267,0.0001981,2]
[358557506,1745257832822,-4586.06303229,0.0001981,2]
[358557507,1745257832834,-5043.40180296,0.0001981,2]
[358557508,1745257832950,-398.05286501,0.0001981,2]
[358557525,1745257838337,-2229.69578321,0.0001981,2]
[358557529,1745257838563,-705.72902975,0.0001981,2]
[358557530,1745257838612,-89422.42040838,0.0001981,2]
[358557531,1745257838622,-250.0,0.0001981,2]
[358557532,1745257838632,-3105.49621095,0.00019811,2]
[358557533,1745257838641,-150.0,0.0001982,2]
[358557534,1745257838651,-3105.49621095,0.00019822,2]
[358557535,1745257838660,-3105.49621095,0.00019833,2]
[358557536,1745257838670,-3105.49621095,0.00019844,2]
[358557537,1745257838679,-150.99,0.00019844,2]
[358557538,1745257838688,-3105.49621095,0.00019856,2]
[358557539,1745257838698,-3105.49621095,0.00019867,2]
[358557540,1745257838707,-3105.49621095,0.00019878,2]
[358557541,1745257838717,-300.0,0.00019885,2]
[358557542,1745257838726,-3104.4199,0.00019886,2]
[358557543,1745257838736,-3105.49621095,0.00019889,2]
[358557544,1745257838745,-3213.20000402,0.0001989,2]
[358557545,1745257838757,-4530.04636833,0.0001989,2]
[358557547,1745257838766,-7743.24637233,0.00019891,2]
[358557549,1745257838776,-7743.24637233,0.00019892,2]
[358557551,1745257838785,-7743.24637233,0.00019893,2]
[358557552,1745257838794,-7743.24637233,0.00019894,2]
[358557553,1745257838803,-7743.24637233,0.00019896,2]
[358557554,1745257838813,-7743.24637233,0.00019897,2]
[358557555,1745257838822,-238.5375079,0.00019897,2]
[358557556,1745257838831,-188.35579149,0.00019897,2]
[358557557,1745257838841,-209.37727252,0.00019897,2]
[358557558,1745257838850,-7743.24637233,0.00019898,2]
[358557559,1745257838860,-7743.24637233,0.00019899,2]
[358557560,1745257838869,-974.78411988,0.000199,2]
[358557561,1745257838879,-160.50507662,0.000199,2]
[358557562,1745257838888,-736.10709726,0.000199,2]
[358557563,1745257838898,-197.6515,0.000199,2]
[358557564,1745257838908,-46519.04189305,0.000199,2]
[358557565,1745257838917,-36170.9236,0.000199,2]
[358557566,1745257838927,-1000.0,0.000199,2]
[358557567,1745257838935,-4738.3626701,0.000199,2]
[358557568,1745257838945,-3105.49621095,0.000199,2]
[358557569,1745257838955,-7743.24637233,0.000199,2]
[358557570,1745257838964,-500.0,0.00019973,2]
[358557571,1745257838973,-500.0,0.00019973,2]
[358557572,1745257838983,-500.0,0.00019973,2]
[358557573,1745257838992,-500.0,0.00019973,2]
[358557574,1745257839001,-459.13962152,0.00019973,2]
[358557575,1745257839010,-503.18148616,0.00019973,2]
[358557576,1745257839020,-185.00979863,0.00019973,2]
[358557577,1745257839030,-1759.8617107,0.00019986,2]
[358557578,1745257839039,-4862.2119141,0.00019986,2]
[358557579,1745257839121,-11224.8181189,0.00019986,2]
[358557580,1745257839130,-136260.3047366,0.00019986,2]
[358557581,1745257839139,-2546.8004169,0.00019986,2]
[358557582,1745257839148,-479.32928362,0.0001999,2]
[358557583,1745257839158,-479.32928362,0.0001999,2]
[358557584,1745257839166,-479.32928362,0.0001999,2]
[358557585,1745257839176,-300.0,0.00019999,2]
[358557586,1745257839184,-500.0,0.00019999,2]
[358557587,1745257839194,-500.0,0.00019999,2]
[358557588,1745257839204,-300.0,0.00019999,2]
[358557589,1745257839214,-500.0,0.00019999,2]
[358557590,1745257839223,-500.0,0.00019999,2]
[358557591,1745257839232,-500.0,0.00019999,2]
[358557592,1745257839241,-500.0,0.00019999,2]
[358557593,1745257839250,-500.0,0.00019999,2]
[358557594,1745257839259,-300.0,0.00019999,2]
[358557595,1745257839269,-234.99380532,0.0002,2]
[358557596,1745257839278,-1651215.92401518,0.0002,2]
[358557597,1745257839289,-2903735.03450256,0.0002,2]
[358557598,1745257839301,-394.93824,0.0002,2]
[358557600,1745257840744,-3118.20217783,0.0002,2]
[358557606,1745257841339,-19894.63076522,0.0002,2]
[358557607,1745257841963,-159556.79898132,0.0002,2]
[358557608,1745257841977,-5927.21877198,0.0002,2]
[358557613,1745257843320,-29547.20945327,0.0002,2]
[358557614,1745257843494,-1777.22505985,0.0002,2]
[358557627,1745257844806,-66657.64910273,0.0002,2]
[358557628,1745257844818,-25186.3396482,0.0002,2]
[358557630,1745257846373,-870.0,0.0002,2]
[358557631,1745257846437,-2572.61641191,0.0002,2]
[358557632,1745257846485,-13049.85,0.0002,2]
[358557633,1745257846593,-3834.9680412,0.0002,2]
[358557651,1745257867728,555.07174749,0.00029,60]
[358557652,1745257995676,250.0,0.00018803,7]
[358557653,1745258031051,46328.9650537,0.00029,120]
[358557654,1745258310319,248.61,0.00019272,3]
[358557655,1745258366345,-524.05320305,0.0001961,2]
[358557656,1745258366370,-250.0,0.00019658,2]
[358557657,1745258366392,-524.05320303,0.00019705,2]
[358557658,1745258366414,-413.89359392,0.0001971,2]
[358557660,1745258412219,209.97,0.00019403,2]
[358557661,1745258415856,40.03,0.00019257,2]
[358557662,1745258483813,-150.0,0.00018996,2]
[358557664,1745258563337,-250.0,0.00018981,2]
[358557665,1745258732579,-337.896829,0.00018981,2]
[358557666,1745258747623,300.0,0.00018885,2]
[358557668,1745258760509,174.68440101,0.00018896,2]
[358557669,1745258763693,-171.20058739,0.00018981,2]
[358557670,1745258869556,942.83,0.0001705,2]
[358557671,1745258870562,-272.43333876,0.00018981,2]
[358557672,1745258897556,1814.72,0.00018951,2]
[358557673,1745258905493,-2334.26557607,0.00018981,2]
[358557674,1745258905544,-322.14210354,0.00018981,2]
[358557675,1745258909375,-178.5515,0.00018981,2]
[358557676,1745258954302,-301.44530762,0.00018981,2]
[358557677,1745258971098,150.0,0.00018932,2]
[358557678,1745258987563,200.0,0.00018932,2]
[358557679,1745259002958,2000.0,0.0002,4]
[358557680,1745259011796,2990.3,0.00018924,2]
[358557684,1745259031409,-195.53475762,0.00018981,2]
[358557685,1745259031419,-74.42,0.00018996,2]
[358557686,1745259031428,-719.58,0.00019257,2]
[358557687,1745259031437,-942.83,0.00019314,2]
[358557688,1745259031446,-300.0,0.00019437,2]
[358557689,1745259031455,-516.39052558,0.00019438,2]
[358557690,1745259031464,-1028.96021215,0.00019438,2]
[358557691,1745259031476,-3048.86838279,0.00019438,2]
[358557692,1745259031487,-393.51368731,0.00019438,2]
[358557693,1745259031499,-598.20233049,0.00019438,2]
[358557694,1745259031510,-2354.8,0.00019438,2]
[358557695,1745259031522,-4474.8697187,0.00019438,2]
[358557696,1745259031537,-3220.33229954,0.00019438,2]
[358557697,1745259031548,-464.14122271,0.00019438,2]
[358557698,1745259031559,-2002.65164984,0.00019438,2]
[358557699,1745259031570,-2553.33000917,0.00019438,2]
[358557700,1745259031585,-3760.3304873,0.00019438,2]
[358557701,1745259031594,-166.67,0.00019625,2]
[358557702,1745259031603,-174.68440101,0.000197,2]
[358557703,1745259031612,-171.892,0.00019799,2]
[358557704,1745259031621,-300.3151572,0.00019799,2]
[358557705,1745259031633,-1780.73208763,0.00019799,2]
[358557706,1745259031644,-1006.00175517,0.00019799,2]
[358557707,1745259031653,-673.0,0.00019799,2]
[358557708,1745259031662,-4448.59537401,0.000198,2]
[358557709,1745259031674,-6969.81454173,0.000198,2]
[358557710,1745259031689,-2585.72572743,0.000198,2]
[358557711,1745259031700,-271.89861931,0.000198,2]
[358557712,1745259031727,-21719.75,0.000198,2]
[358557713,1745259031738,-175.13933752,0.000198,2]
[358557714,1745259031747,-1000.0,0.000198,2]
[358557716,1745259031756,-200.0,0.0001984,2]
[358557718,1745259031765,-666.5897778,0.00019886,2]
[358557720,1745259031774,-500.0,0.00019886,2]
[358557722,1745259031784,-1463.297,0.00019886,2]
[358557724,1745259031794,-1391.0428,0.00019886,2]
[358557726,1745259031804,-1000.0,0.00019886,2]
[358557727,1745259031814,-2500.0,0.00019886,2]
[358557728,1745259031823,-666.5897778,0.00019888,2]
[358557729,1745259031832,-666.5897778,0.00019889,2]
[358557730,1745259031841,-666.5897778,0.00019891,2]
[358557731,1745259031851,-666.5897778,0.00019892,2]
[358557732,1745259031860,-666.5897778,0.00019894,2]
[358557733,1745259031873,-666.5897778,0.00019895,2]
[358557734,1745259031882,-666.5897778,0.00019897,2]
[358557735,1745259031892,-666.5897778,0.00019898,2]
[358557736,1745259031901,-165.12734422,0.000199,2]
[358557737,1745259031910,-182.35642941,0.000199,2]
[358557738,1745259031919,-9148.2544,0.000199,2]
[358557739,1745259031927,-806.6006149,0.000199,2]
[358557740,1745259031936,-6649.7972,0.000199,2]
[358557741,1745259031947,-225.0,0.000199,2]
[358557742,1745259031956,-666.5897778,0.000199,2]
[358557743,1745259031965,-17296.607,0.000199,2]
[358557744,1745259031974,-1172.85384942,0.000199,2]
[358557745,1745259031983,-3135.20421092,0.000199,2]
[358557746,1745259031994,-500.0,0.00019973,2]
[358557747,1745259032003,-500.0,0.00019973,2]
[358557748,1745259032012,-502.1102975,0.00019973,2]
[358557749,1745259032021,-500.0,0.00019973,2]
[358557750,1745259032030,-170.84190683,0.00019973,2]
[358557751,1745259032039,-504.75280513,0.00019973,2]
[358557752,1745259032048,-500.0,0.00019973,2]
[358557753,1745259032057,-500.0,0.00019973,2]
[358557754,1745259032066,-511.12929153,0.00019973,2]
[358557755,1745259032074,-615.82724868,0.00019973,2]
[358557756,1745259032083,-166.97625553,0.00019985,2]
[358557757,1745259032093,-2013.7323706,0.00019986,2]
[358557758,1745259032102,-6362.3184013,0.00019986,2]
[358557759,1745259032112,-1608.6155769,0.00019986,2]
[358557760,1745259032121,-1081.6991174,0.00019986,2]
[358557761,1745259032130,-13356.6201869,0.00019986,2]
[358557762,1745259032139,-61828.19742248,0.00019986,2]
[358557763,1745259032150,-750.04243011,0.00019986,2]
[358557764,1745259032161,-574.42573208,0.00019986,2]
[358557765,1745259032179,-2339.677677,0.00019986,2]
[358557766,1745259032190,-1952.72595287,0.00019986,2]
[358557772,1745259037513,-167.28,0.00019864,2]
[358557773,1745259037522,-1568.32,0.00019886,2]
[358557774,1745259037619,-2724.35378421,0.00019886,2]
[358557775,1745259037673,-13003.93321579,0.00019886,2]
[358557776,1745259037682,-66595.9774595,0.00019986,2]
[358557777,1745259037720,-685.43951356,0.00019986,2]
[358557778,1745259037740,-40133.6649072,0.00019986,2]
[358557779,1745259037749,-6576.4205082,0.00019986,2]
[358557780,1745259037759,-603.48047766,0.0001999,2]
[358557781,1745259037768,-603.48047766,0.0001999,2]
[358557782,1745259037777,-603.48047766,0.0001999,2]
[358557783,1745259037786,-300.0,0.00019999,2]
[358557784,1745259037795,-300.0,0.00019999,2]
[358557785,1745259037804,-300.0,0.00019999,2]
[358557786,1745259037813,-500.0,0.00019999,2]
[358557787,1745259037822,-300.0,0.00019999,2]
[358557788,1745259037832,-500.0,0.00019999,2]
[358557790,1745259037841,-500.0,0.00019999,2]
[358557792,1745259037850,-500.0,0.00019999,2]
[358557793,1745259037859,-500.0,0.00019999,2]
[358557794,1745259037871,-500.0,0.00019999,2]
[358557795,1745259037880,-234.99380532,0.0002,2]
[358557797,1745259037890,-124804.98886349,0.0002,2]
[358557799,1745259037900,-1629560.31942657,0.0002,2]
[358557801,1745259037911,-2903735.03450256,0.0002,2]
[358557985,1745259040030,-1231.13735058,0.0002,2]
[358557986,1745259040138,-137848.47357255,0.0002,2]
[358557987,1745259040191,-1407.42544778,0.0002,2]
[358558006,1745259042541,-14351.0,0.0002,2]
[358558007,1745259044064,-434250.00000001,0.0002,2]
[358558008,1745259044087,-1909.63087873,0.0002,2]
[358558009,1745259044098,-738.05,0.0002,2]
[358558012,1745259045463,-868.0,0.000199,2]
[358558013,1745259045514,-901.14684855,0.000199,2]
[358558014,1745259045620,-451.43927147,0.000199,2]
[358558020,1745259151787,351.82093466,0.00018968,2]
[358558021,1745259152018,-375.28702909,0.00018968,2]
[358558022,1745259512820,170.61,0.00015929,2]
[358558023,1745259609012,-272.89203625,0.00018968,2]
[358558024,1745259609035,-171.20058739,0.000197,2]
[358558025,1745259609058,-45.90737636,0.00019785,2]
[358558026,1745259861415,23900.0,0.00018759,2]
[358558027,1745259909414,848.54,0.00016848,2]
[358558028,1745259911994,-159.07537707,0.00019112,2]
[358558029,1745259967171,-159.075377,0.00019016,2]
[358558031,1745259986341,200.0,0.00018761,2]
[358558032,1745260051640,200.0,0.00018755,2]
[358558044,1745260139445,1495.15,0.00018766,2]
[358558045,1745260203762,2000.0,0.0002,4]
[358558046,1745260228501,150.0,0.00018751,2]
[358558055,1745260231610,-689.46462293,0.00019112,2]
[358558056,1745260231620,-217.6100759,0.00019483,2]
[358558057,1745260231630,-1000.0,0.00019577,2]
[358558058,1745260231640,-1000.0,0.00019583,2]
[358558059,1745260231651,-831.28900281,0.00019583,2]
[358558060,1745260231662,-150.0,0.00019616,2]
[358558061,1745260231671,-150.0,0.00019616,2]
[358558062,1745260231682,-150.0,0.00019616,2]
[358558063,1745260231691,-217.6100759,0.00019618,2]
[358558064,1745260231701,-150.0,0.00019621,2]
[358558065,1745260231710,-150.0,0.00019623,2]
[358558066,1745260231719,-150.0,0.00019629,2]
[358558067,1745260231729,-1000.0,0.00019629,2]
[358558068,1745260231738,-531.41,0.00019629,2]
[358558069,1745260231747,-28641.66322598,0.00019629,2]
[358558070,1745260231759,-10759.80666583,0.00019629,2]
[358558071,1745260231768,-150.0,0.0001963,2]
[358558072,1745260231778,-150.0,0.00019632,2]
[358558073,1745260231787,-150.0,0.00019638,2]
[358558074,1745260231797,-150.0,0.0001964,2]
[358558075,1745260231806,-150.0,0.00019645,2]
[358558076,1745260231815,-150.0,0.00019647,2]
[358558077,1745260231824,-150.0,0.0001965,2]
[358558078,1745260231833,-150.0,0.0001965,2]
[358558079,1745260231842,-300.0,0.00019651,2]
[358558080,1745260231851,-300.0,0.00019651,2]
[358558081,1745260231860,-1000.0,0.00019652,2]
[358558082,1745260231869,-150.0,0.00019658,2]
[358558083,1745260231878,-150.0,0.0001966,2]
[358558084,1745260231888,-150.0,0.00019661,2]
[358558085,1745260231898,-150.0,0.00019662,2]
[358558087,1745260231907,-150.0,0.00019663,2]
[358558089,1745260231916,-150.0,0.00019671,2]
[358558091,1745260231925,-150.0,0.00019676,2]
[358558093,1745260231933,-150.0,0.00019676,2]
[358558095,1745260231943,-150.0,0.00019681,2]
[358558097,1745260231952,-150.0,0.00019684,2]
[358558099,1745260231961,-150.0,0.00019687,2]
[358558101,1745260231971,-150.0,0.0001969,2]
[358558102,1745260231979,-150.0,0.00019692,2]
[358558104,1745260231989,-150.0,0.00019694,2]
[358558106,1745260231998,-150.0,0.00019698,2]
[358558107,1745260232008,-261.71428702,0.00019701,2]
[358558108,1745260232019,-150.0,0.00019702,2]
[358558110,1745260232029,-150.0,0.00019707,2]
[358558112,1745260232039,-150.0,0.00019709,2]
[358558114,1745260232049,-150.0,0.00019715,2]
[358558116,1745260232059,-150.0,0.00019717,2]
[358558118,1745260232068,-150.0,0.00019723,2]
[358558120,1745260232078,-150.0,0.00019724,2]
[358558122,1745260232087,-150.0,0.00019726,2]
[358558124,1745260232097,-150.0,0.00019728,2]
[358558126,1745260232106,-150.0,0.00019737,2]
[358558128,1745260232115,-150.0,0.00019737,2]
[358558129,1745260232125,-150.0,0.00019739,2]
[358558130,1745260232134,-150.0,0.00019743,2]
[358558131,1745260232144,-150.0,0.00019744,2]
[358558132,1745260232153,-150.0,0.00019748,2]
[358558133,1745260232163,-150.0,0.00019752,2]
[358558134,1745260232172,-217.6100759,0.00019753,2]
[358558135,1745260232182,-150.0,0.00019755,2]
[358558136,1745260232192,-300.0,0.00019755,2]
[358558137,1745260232201,-1000.0,0.00019757,2]
[358558138,1745260232211,-150.0,0.00019758,2]
[358558139,1745260232221,-150.0,0.0001976,2]
[358558140,1745260232230,-150.0,0.00019761,2]
[358558141,1745260232242,-1000.0,0.00019763,2]
[358558142,1745260232251,-150.0,0.00019769,2]
[358558143,1745260232261,-150.0,0.00019771,2]
[358558144,1745260232271,-150.0,0.00019772,2]
[358558145,1745260232280,-150.0,0.00019774,2]
[358558146,1745260232290,-150.0,0.00019774,2]
[358558147,1745260232299,-150.0,0.00019777,2]
[358558148,1745260232308,-150.0,0.00019778,2]
[358558149,1745260232318,-150.0,0.00019779,2]
[358558150,1745260232327,-1000.0,0.0001978,2]
[358558151,1745260232337,-150.0,0.00019787,2]
[358558152,1745260232346,-150.0,0.00019789,2]
[358558153,1745260232355,-150.0,0.00019791,2]
[358558154,1745260232365,-150.0,0.00019793,2]
[358558155,1745260232374,-150.0,0.00019794,2]
[358558156,1745260232383,-150.0,0.00019794,2]
[358558157,1745260232393,-150.0,0.00019795,2]
[358558158,1745260232403,-150.0,0.00019795,2]
[358558159,1745260232412,-150.0,0.00019799,2]
[358558160,1745260232421,-25625.88858189,0.000198,2]
[358558161,1745260232431,-150.0,0.00019801,2]
[358558162,1745260232441,-300.0,0.00019802,2]
[358558163,1745260232450,-1000.0,0.00019804,2]
[358558164,1745260232459,-150.0,0.00019805,2]
[358558165,1745260232468,-150.0,0.00019807,2]
[358558166,1745260232478,-300.57198749,0.00019812,2]
[358558167,1745260232490,-376.14801251,0.00019812,2]
[358558168,1745260232499,-150.0,0.00019814,2]
[358558169,1745260232508,-150.0,0.00019815,2]
[358558170,1745260232519,-150.0,0.00019816,2]
[358558171,1745260232527,-1000.0,0.00019816,2]
[358558172,1745260232537,-150.0,0.00019817,2]
[358558173,1745260232546,-150.0,0.0001982,2]
[358558174,1745260232556,-150.0,0.00019821,2]
[358558175,1745260232565,-150.0,0.00019822,2]
[358558176,1745260232575,-150.0,0.00019825,2]
[358558177,1745260232585,-150.0,0.00019827,2]
[358558178,1745260232595,-150.0,0.00019828,2]
[358558179,1745260232604,-150.0,0.00019829,2]
[358558180,1745260232614,-150.0,0.00019831,2]
[358558181,1745260232624,-150.0,0.00019832,2]
[358558182,1745260232633,-150.0,0.00019834,2]
[358558183,1745260232643,-150.0,0.00019835,2]
[358558184,1745260232652,-150.0,0.00019835,2]
[358558185,1745260232661,-702.50636187,0.00019835,2]
[358558186,1745260232730,-297.49363813,0.00019835,2]